[Event "58th Akiba Rubinstein B 2022"]
[Site "Polanica-Zdroj"]
[Date "2022.08.21"]
[Round "9.12"]
[White "Trusz, Julia"]
[Black "Halhoul, Adam"]
[Result "1-0"]
[ECO "D30"]
[WhiteElo "1706"]
[BlackElo "1672"]
[Annotator "NA RC"]
[PlyCount "55"]
[EventDate "2022.08.13"]
[EventCountry "POL"]
[SourceTitle "playchess.com"]
[Source "ChessBase"]
[SourceQuality "1"]
[TimeControl "40/5400+30:1800+30"]

1. d4 {[%emt 0:00:07]} d5 {[%emt 0:00:30]} 2. c4 {[%emt 0:00:37]} e6 {[%emt 0:00:05]} 3. Nf3 {[%emt 0:00:25]} c6 {[%emt 0:00:19]} 4. Qc2 {[%emt 0:00:35]} Nf6 {[%emt 0:00:15]} 5. Nbd2 {[%emt 0:00:13]} Bd6 {[%emt 0:00:50]} 6. g3 {[%emt 0:00:26]} O-O {[%emt 0:00:08]} 7. Bg2 {[%emt 0:00:07]} Re8 {[%emt 0:00:13]} 8. O-O {[%emt 0:00:48]} Nbd7 {[%emt 0:00:22]} 9. b3 {[%emt 0:05:24]} e5 {[%emt 0:01:23]} 10. dxe5 {[%emt 0:01:09]} Nxe5 {[%emt 0:00:51]} 11. Bb2 {[%emt 0:00:17]} Nxf3+ {[%emt 0:00:22]} 12. Nxf3 {[%emt 0:00:10]} Qe7 {[%emt 0:01:52]} 13. e3 {[%emt 0:02:27]} dxc4 {[%emt 0:01:50]} 14. Qxc4 {[%emt 0:06:34]} Be6 {[%emt 0:03:27]} 15. Qc2 {[%emt 0:00:12]} Bd5 {[%emt 0:01:20]} 16. Nd4 {[%emt 0:08:02]} Bxg2 {[%emt 0:03:24]} 17. Kxg2 {[%emt 0:00:11]} Be5 {[%emt 0:05:05]} 18. Rfd1 {[%emt 0:03:08]} c5 {[%emt 0:01:15]} 19. Nf5 {[%emt 0:04:14]} Qc7 {[%emt 0:00:31]} 20. Rac1 {[%emt 0:05:48]} Qc6+ {[%emt 0:05:58]} 21. f3 {[%emt 0:13:46]} Nd5 {[%emt 0:07:33]} 22. e4 {[%emt 0:13:33]} Nb4 {[%emt 0:01:44]} 23. Qf2 {[%emt 0:00:56]} Qa6 {[%emt 0:07:18]} 24. Rxc5 {[%emt 0:12:28]} f6 {[%emt 0:11:11]} 25. Bxe5 {[%emt 0:02:33]} fxe5 {[%emt 0:00:04]} 26. Rc7 {[%emt 0:00:51]} g6 {[%emt 0:00:57]} 27. Nh6+ {[%emt 0:00:17]} Kf8 {[%emt 0:00:38]} 28. Rf7# {[%emt 0:00:04]} 1-0

[Event "58th Akiba Rubinstein B 2022"]
[Site "Polanica-Zdroj"]
[Date "2022.08.21"]
[Round "9.13"]
[White "Penza, Denis"]
[Black "Kowalczyk, Wojciech"]
[Result "1/2-1/2"]
[ECO "E73"]
[WhiteElo "1836"]
[BlackElo "1835"]
[Annotator "NA RC"]
[PlyCount "28"]
[EventDate "2022.08.13"]
[EventCountry "POL"]
[SourceTitle "playchess.com"]
[Source "ChessBase"]
[SourceQuality "1"]
[TimeControl "40/5400+30:1800+30"]

1. d4 Nf6 {[%emt 0:00:05]} 2. c4 {[%emt 0:03:06]} g6 {[%emt 0:00:05]} 3. Nc3 {[%emt 0:00:04]} Bg7 {[%emt 0:00:04]} 4. e4 {[%emt 0:00:04]} d6 {[%emt 0:00:03]} 5. Be2 {[%emt 0:00:03]} O-O 6. Bg5 c5 {[%emt 0:00:26]} 7. d5 {[%emt 0:00:10]} h6 {[%emt 0:00:15]} 8. Bf4 {[%emt 0:00:02]} e6 {[%emt 0:00:16]} 9. dxe6 {[%emt 0:00:09]} Bxe6 {[%emt 0:00:08]} 10. Bxd6 {[%emt 0:00:16]} Re8 {[%emt 0:00:21]} 11. Nf3 {[%emt 0:00:23]} Qb6 {[%emt 0:00:55]} 12. Bxb8 {[%emt 0:00:14]} Raxb8 {[%emt 0:00:11]} 13. Qc2 {[%emt 0:00:00]} Nh5 {[%emt 0:00:58]} 14. g3 {[%emt 0:00:22]} Bh3 1/2-1/2

[Event "58th Akiba Rubinstein B 2022"]
[Site "Polanica-Zdroj"]
[Date "2022.08.21"]
[Round "9.14"]
[White "Szydelko, Michal"]
[Black "Wilk, Aleksander"]
[Result "1/2-1/2"]
[ECO "C42"]
[WhiteElo "1833"]
[BlackElo "1569"]
[Annotator "NA RC"]
[PlyCount "82"]
[EventDate "2022.08.13"]
[EventCountry "POL"]
[SourceTitle "playchess.com"]
[Source "ChessBase"]
[SourceQuality "1"]
[TimeControl "40/5400+30:1800+30"]

1. e4 {[%emt 0:00:02]} e5 {[%emt 0:00:06]} 2. Nf3 {[%emt 0:00:39]} Nf6 {[%emt 0:00:05]} 3. Nxe5 {[%emt 0:00:52]} d6 {[%emt 0:01:02]} 4. Nf3 {[%emt 0:00:09]} Nxe4 {[%emt 0:00:08]} 5. d4 {[%emt 0:05:11]} d5 {[%emt 0:00:06]} 6. Bd3 {[%emt 0:00:09]} Bd6 {[%emt 0:00:08]} 7. O-O {[%emt 0:00:09]} O-O {[%emt 0:00:29]} 8. c4 {[%emt 0:00:31]} c6 {[%emt 0:00:12]} 9. Nc3 {[%emt 0:00:10]} Nxc3 {[%emt 0:03:30]} 10. bxc3 {[%emt 0:01:04]} h6 {[%emt 0:03:00]} 11. cxd5 {[%emt 0:13:21]} cxd5 {[%emt 0:00:09]} 12. Rb1 {[%emt 0:00:34]} Nc6 {[%emt 0:03:22]} 13. Bd2 {[%emt 0:03:39]} Qc7 {[%emt 0:06:36]} 14. h3 {[%emt 0:01:38]} Re8 {[%emt 0:02:07]} 15. Qb3 {[%emt 0:01:40]} Rd8 {[%emt 0:03:30]} 16. Rfe1 {[%emt 0:00:49]} Bf8 {[%emt 0:13:00]} 17. Ne5 {[%emt 0:06:40]} b6 {[%emt 0:17:15]} 18. Bf4 {[%emt 0:07:46]} Be6 {[%emt 0:11:23]} 19. Qc2 {[%emt 0:04:42]} Nxe5 {[%emt 0:03:04]} 20. Bxe5 Bd6 {[%emt 0:00:55]} 21. Qd2 {[%emt 0:03:11]} Bxe5 {[%emt 0:02:09]} 22. dxe5 {[%emt 0:00:54]} Rac8 {[%emt 0:02:39]} 23. Re3 {[%emt 0:00:04]} Kf8 {[%emt 0:01:40]} 24. Be2 {[%emt 0:02:34]} Qc5 {[%emt 0:04:33]} 25. Rd1 {[%emt 0:00:13]} Rc7 {[%emt 0:01:39]} 26. f4 {[%emt 0:01:35]} Rcd7 {[%emt 0:01:10]} 27. Qd4 {[%emt 0:00:13]} Qxd4 {[%emt 0:00:38]} 28. Rxd4 {[%emt 0:00:49]} Ke7 {[%emt 0:05:15]} 29. g4 {[%emt 0:00:42]} g6 {[%emt 0:02:11]} 30. Bd3 {[%emt 0:02:40]} Rc7 {[%emt 0:00:52]} 31. f5 {[%emt 0:04:56]} Bc8 {[%emt 0:00:30]} 32. fxg6 {[%emt 0:01:21]} Rxc3 {[%emt 0:01:27]} 33. Rf3 {[%emt 0:01:41]} fxg6 {[%emt 0:00:58]} 34. Rf6 {[%emt 0:00:06]} Rc1+ {[%emt 0:03:45]} 35. Kf2 {[%emt 0:02:24]} Rh1 {[%emt 0:03:12]} 36. Kg2 {[%emt 0:03:24]} Re1 {[%emt 0:01:24]} 37. Rxg6 {[%emt 0:00:13]} Rxe5 {[%emt 0:00:19]} 38. Rxh6 {[%emt 0:01:58]} Be6 {[%emt 0:02:13]} 39. Rh7+ {[%emt 0:03:54]} Kd6 {[%emt 0:00:03]} 40. Rxa7 {[%emt 0:00:00]} Re3 {[%emt 0:00:00]} 41. Bf1 {[%emt 0:21:32]} Ke5 {[%emt 0:07:24]} 1/2-1/2

[Event "58th Akiba Rubinstein B 2022"]
[Site "Polanica-Zdroj"]
[Date "2022.08.21"]
[Round "9.15"]
[White "Uliasz, Katarzyna"]
[Black "Bednarczyk, Mateusz"]
[Result "0-1"]
[ECO "A16"]
[WhiteElo "1566"]
[BlackElo "1925"]
[Annotator "NA RC"]
[PlyCount "68"]
[EventDate "2022.08.13"]
[EventCountry "POL"]
[SourceTitle "playchess.com"]
[Source "ChessBase"]
[SourceQuality "1"]
[TimeControl "40/5400+30:1800+30"]

1. c4 {[%emt 0:00:04]} Nf6 {[%emt 0:00:06]} 2. Nc3 {[%emt 0:00:04]} g6 {[%emt 0:00:04]} 3. g3 {[%emt 0:00:05]} Bg7 {[%emt 0:00:05]} 4. Bg2 {[%emt 0:00:04]} O-O {[%emt 0:00:06]} 5. e4 {[%emt 0:00:10]} d6 {[%emt 0:00:06]} 6. Nge2 {[%emt 0:00:06]} c5 {[%emt 0:00:43]} 7. O-O {[%emt 0:00:24]} Nc6 {[%emt 0:00:06]} 8. d3 {[%emt 0:00:07]} a6 {[%emt 0:00:51]} 9. h3 {[%emt 0:07:54]} Rb8 {[%emt 0:00:32]} 10. a4 {[%emt 0:01:19]} Bd7 {[%emt 0:02:42]} 11. Be3 {[%emt 0:00:32]} Na5 {[%emt 0:04:47]} 12. f4 {[%emt 0:06:53]} Bc6 {[%emt 0:06:12]} 13. g4 {[%emt 0:05:27]} Nd7 {[%emt 0:03:51]} 14. Ng3 {[%emt 0:06:23]} b5 {[%emt 0:02:04]} 15. cxb5 {[%emt 0:07:14]} axb5 {[%emt 0:00:06]} 16. axb5 {[%emt 0:00:07]} Bxb5 {[%emt 0:00:07]} 17. Nxb5 {[%emt 0:00:44]} Rxb5 {[%emt 0:00:07]} 18. Qa4 {[%emt 0:00:09]} Qb6 {[%emt 0:01:18]} 19. b4 {[%emt 0:06:10]} Bxa1 {[%emt 0:05:06]} 20. Rxa1 {[%emt 0:08:49]} Nc6 {[%emt 0:02:50]} 21. bxc5 {[%emt 0:00:40]} Nxc5 {[%emt 0:00:17]} 22. Qd1 {[%emt 0:00:32]} Rb8 {[%emt 0:04:00]} 23. Kh2 {[%emt 0:11:15]} Rb2 {[%emt 0:09:50]} 24. Rc1 {[%emt 0:05:16]} Qb3 {[%emt 0:04:44]} 25. Qxb3 {[%emt 0:07:52]} R8xb3 {[%emt 0:02:34]} 26. Bxc5 {[%emt 0:00:42]} dxc5 {[%emt 0:00:06]} 27. Rxc5 {[%emt 0:00:08]} Nd4 {[%emt 0:03:10]} 28. Rc8+ {[%emt 0:02:47]} Kg7 {[%emt 0:00:39]} 29. Rc4 {[%emt 0:01:55]} Rxd3 {[%emt 0:01:09]} 30. Nf1 {[%emt 0:00:10]} Nf3+ {[%emt 0:00:33]} 31. Kh1 {[%emt 0:00:11]} Nh4 {[%emt 0:00:30]} 32. Nh2 {[%emt 0:02:39]} Rxg2 {[%emt 0:00:15]} 33. Rc1 {[%emt 0:00:22]} Rxh3 {[%emt 0:00:09]} 34. Rg1 {[%emt 0:00:14]} Rhxh2# {[%emt 0:00:07]} 0-1